bitfinex/quotes_ETHUSD_20260114
["timestamp","ask_amount","ask_price","bid_price","bid_amount"]
[1768357347268,5.21949625,3333.9,3333.2,0.40155372]
[1768357347457,5.77449625,3333.9,3333.2,0.40155372]
[1768357348066,2.775,3333.9,3333.2,0.40155372]
[1768357348633,2.775,3333.9,3333.2,7.41720119]
[1768357349282,1.11,3334.3,3333.3,4.01553717]
[1768357349444,1.11,3334.3,3333.2,6.81178402]
[1768357349445,1.11,3334.3,3333.4,4.55226397]
[1768357350059,1.665,3334.3,3333.4,4.55226397]
[1768357350654,1.665,3334.3,3333.5,2.99985]
[1768357350856,1.665,3334.3,3333.6,4.01553717]
[1768357351054,1.665,3334.3,3333.5,5.9997]
[1768357351055,1.665,3334.3,3333.7,4.42553717]
[1768357351277,1.665,3334.3,3333.8,0.40155372]
[1768357351501,5.30135115,3334.8,3333.8,4.41709089]
[1768357351802,4.19135115,3334.7,3333.8,0.40155372]
[1768357352153,4.10870222,3334.8,3333.8,4.41709089]
[1768357352613,4.19135115,3334.7,3333.9,3.40844754]
[1768357352758,4.19135115,3334.7,3334.0,0.5367268]
[1768357352953,1.615,3334.8,3334.0,4.55226397]
[1768357353988,4.19135115,3334.6,3333.3,3.413213]
[1768357354284,4.19135115,3334.6,3333.7,2.99959679]
[1768357354500,4.19135115,3334.6,3333.8,2.99957287]
[1768357354696,1.615,3334.8,3333.9,4.42453717]
[1768357354861,5.80635115,3334.8,3333.9,4.42453717]
[1768357355063,4.27957868,3334.7,3333.9,0.409]
[1768357355257,4.27957868,3334.7,3333.6,4.15623732]
[1768357355463,4.27957868,3334.7,3333.3,2.99999046]
[1768357355661,4.27957868,3334.7,3333.2,4.18623852]
[1768357355662,4.27957868,3334.7,3332.6,4.15723732]
[1768357355966,4.28157868,3334.5,3332.9,3.00033293]
[1768357356165,4.28157868,3334.5,3332.7,3.00055793]
[1768357356166,4.27957868,3334.3,3332.8,4.15623732]
[1768357356361,4.27957868,3334.3,3333.1,3.00015163]
[1768357356762,4.27957868,3334.1,3333.0,3.00030003]
[1768357357781,7.83397591,3334.1,3333.0,10.15683738]
[1768357357969,7.83397591,3334.1,3332.6,3.00163274]
[1768357357970,4.27957868,3334.0,3333.1,0.0300021]
[1768357358175,4.68957868,3333.9,3332.6,4.15723732]
[1768357358364,4.68957868,3333.9,3332.7,3.00053184]
[1768357358595,4.68957868,3333.9,3332.7,7.15676916]
[1768357359009,4.68957868,3333.9,3332.7,3.00053184]
[1768357359416,4.68957868,3333.9,3332.7,7.15676916]
[1768357359895,10.27873878,3333.8,3332.7,4.15623732]
[1768357360096,4.27957868,3333.7,3332.8,0.409]
[1768357360469,3.96452474,3333.9,3333.0,4.15623732]
[1768357360994,3.96452474,3333.9,3332.9,0.0300039]
[1768357360995,4.27957868,3333.8,3332.6,0.001]
[1768357361803,9.96357422,3333.9,3332.6,0.001]
[1768357361804,4.27957868,3333.6,3332.6,0.001]
[1768357361977,4.27957868,3333.4,3332.6,0.001]
[1768357362164,4.27957868,3333.2,3332.6,0.001]
[1768357362688,4.83457868,3333.2,3332.6,0.001]
[1768357363797,0.555,3333.2,3332.6,0.001]
[1768357364993,0.555,3333.9,3332.6,4.59624392]
[1768357365200,0.555,3333.9,3332.8,4.15623732]
[1768357366288,4.83457868,3333.9,3332.9,6.0007801]
[1768357366686,4.83457868,3333.9,3332.9,10.15701742]
[1768357366886,0.555,3333.9,3333.0,4.15623732]
[1768357367103,0.555,3333.9,3333.4,4.15623732]
[1768357367104,1e-08,3333.9,3333.4,4.15623732]
[1768357367306,0.55500001,3333.9,3333.5,0.40687758]
[1768357367475,1e-08,3333.9,3333.5,4.5631149]
[1768357368397,0.002,3334.5,3333.6,10.15575734]
[1768357368606,0.002,3334.5,3333.7,4.15623732]
[1768357369415,0.002,3334.5,3333.6,9.40828003]
[1768357369704,0.002,3334.5,3333.7,0.45962439]
[1768357369901,0.557,3334.5,3333.7,4.61586171]
[1768357370101,6.45157868,3334.8,3333.9,4.15623732]
[1768357370102,2.172,3334.8,3333.9,4.15623732]
[1768357370304,2.172,3334.8,3334.0,18.74236133]
[1768357370602,2.172,3334.8,3334.1,0.81587758]
[1768357371008,2.172,3334.8,3334.1,4.9721149]
[1768357371507,0.30500001,3335.1,3334.1,4.9721149]
[1768357371668,0.30500001,3335.1,3334.2,11.01242532]
[1768357371873,0.30500001,3335.1,3334.3,4.15623732]
[1768357372096,0.30500001,3335.1,3334.4,0.45962439]
[1768357372406,0.86000001,3335.1,3334.5,2.99895036]
[1768357372910,0.86000001,3335.1,3334.5,5.99790072]
[1768357373113,0.86000001,3335.1,3334.6,4.15623732]
[1768357373512,0.86000001,3335.1,3334.6,4.56523732]
[1768357373819,0.86000001,3335.1,3334.7,0.40687758]
[1768357374329,0.86000001,3335.1,3334.7,3.40556097]
[1768357374680,0.555,3335.4,3334.7,3.40556097]
[1768357374877,0.509,3335.9,3334.7,10.56056879]
[1768357374878,4.78857868,3335.9,3334.7,10.56056879]
[1768357375083,5.19857868,3335.9,3334.8,0.45962439]
[1768357375278,5.19857868,3335.9,3334.8,4.61586171]
[1768357375503,5.19857868,3335.9,3334.8,0.45962439]
[1768357376518,5.19857868,3335.9,3334.9,5.99718132]
[1768357376718,4.27957868,3335.7,3334.9,5.99718132]
[1768357377292,4.83457868,3335.7,3334.9,5.99718132]
[1768357377492,0.555,3335.7,3334.9,5.99718132]
[1768357379580,0.555,3335.7,3334.9,6.40618132]
[1768357379905,1.11,3335.7,3335.0,4.15623732]
[1768357380410,1.11,3335.7,3335.0,4.5631149]
[1768357380580,0.509,3335.9,3335.4,4.15623732]
[1768357380782,0.459,3335.9,3335.4,7.15431549]
[1768357381101,0.459,3335.9,3335.4,10.15245664]
[1768357381300,0.459,3335.9,3335.4,7.15431549]
[1768357381690,0.459,3335.9,3335.4,2.99807817]
[1768357381887,0.002,3335.7,3335.4,2.99807817]
[1768357382094,0.002,3335.7,3335.3,2.99821105]
[1768357382292,0.557,3335.7,3335.3,3.86683544]
[1768357382818,0.557,3335.7,3335.3,2.99819568]
[1768357382990,0.557,3335.7,3335.3,5.99642672]
[1768357383402,0.557,3335.7,3335.3,2.99819568]
[1768357383717,0.557,3335.7,3335.3,2.99822606]
[1768357384126,0.459,3335.9,3335.4,4.15623732]
[1768357384724,1.014,3335.9,3335.5,2.99805126]
[1768357384922,0.555,3336.2,3335.5,2.99805126]
[1768357384923,0.555,3336.2,3335.6,4.15623732]
[1768357385416,0.555,3336.2,3335.5,5.99610252]
[1768357385622,0.555,3336.2,3335.6,0.409]
[1768357386818,0.555,3336.2,3335.6,3.40692863]
[1768357387116,5.28242025,3336.2,3335.5,2.99801605]
[1768357387313,5.28242025,3336.2,3335.5,0.409]
[1768357387513,5.28242025,3336.2,3335.5,3.40703277]
[1768357387752,5.28242025,3336.2,3335.5,2.99801897]
[1768357388038,4.17242025,3336.1,3335.1,14.5]
[1768357388238,4.17242025,3336.1,3335.0,4.591532]
[1768357388459,4.17242025,3335.9,3333.9,2.99947991]
[1768357388606,4.17242025,3335.9,3333.9,3.430136]
[1768357388801,4.17242025,3335.7,3333.9,3.40848905]
[1768357389032,4.17242025,3335.7,3333.9,7.64535658]
[1768357389336,4.17242025,3335.7,3334.0,4.23686753]
[1768357389632,4.17242025,3335.5,3334.0,4.23686753]
[1768357389836,1.6163523,3335.6,3334.0,4.23686753]
[1768357389837,4.17242025,3335.3,3334.0,4.23686753]
[1768357391137,5.99664188,3335.2,3334.0,7.23622554]
[1768357391351,4.17242025,3335.1,3333.7,4.23686753]
[1768357391642,8.99496282,3335.2,3333.8,0.42368675]
[1768357391643,4.17242025,3334.9,3333.8,0.42368675]
[1768357391844,4.58242025,3334.8,3333.8,0.42368675]
[1768357392219,4.58242025,3334.8,3333.8,3.42324797]
[1768357392717,4.58242025,3334.8,3333.9,2.99948999]
[1768357392918,4.58242025,3334.8,3334.0,0.44281522]
[1768357393223,7.58117272,3334.8,3334.0,0.44281522]
[1768357393529,10.57992519,3334.8,3334.0,0.44281522]
[1768357393841,10.57992519,3334.8,3333.2,0.16]
[1768357393842,4.17242025,3334.7,3333.3,7.23682173]
[1768357394027,4.17242025,3334.7,3334.1,0.001]
[1768357394413,4.72742025,3334.7,3334.1,0.001]
[1768357395309,4.17242025,3334.5,3334.1,0.001]
[1768357395509,5.99772086,3334.6,3334.1,0.001]
[1768357395510,4.17242025,3334.3,3334.1,0.001]
[1768357395722,4.58242025,3334.2,3334.1,0.001]
[1768357396038,4.58242025,3334.2,3333.1,0.001]
[1768357396955,5.13742025,3334.2,3333.1,0.001]
[1768357397251,4.17242025,3334.0,3333.1,0.001]
[1768357397431,4.17242025,3333.8,3333.1,0.001]
[1768357397633,4.38888609,3333.6,3333.1,0.001]
[1768357399316,7.38873609,3333.5,3333.1,0.001]
[1768357400249,10.38858609,3333.5,3333.1,0.001]
[1768357400424,11.5239447,3333.5,3333.1,0.001]
[1768357401052,4.38888609,3333.4,3333.1,0.001]
[1768357401248,0.41,3333.3,3333.1,0.001]
[1768357401551,3.00012,3333.2,3333.1,0.001]
[1768357402140,0.555,3333.2,3333.1,0.001]
[1768357403028,0.555,3333.2,3332.1,17.50109352]
[1768357403029,4.38888609,3333.1,3332.1,14.5]
[1768357403242,4.38888609,3333.1,3332.0,4.91548665]
[1768357403418,4.38888609,3333.1,3332.0,0.61478474]
[1768357403769,7.38918612,3333.0,3332.0,4.50648665]
[1768357404044,4.79888609,3332.9,3332.0,0.20578474]
[1768357404448,5.35388609,3332.9,3332.0,0.20578474]
[1768357404928,0.965,3332.9,3332.0,4.50648665]
[1768357405519,0.965,3332.9,3332.0,7.5076791]
[1768357405718,8.35429268,3332.9,3332.0,7.50766273]
[1768357406035,8.35429268,3332.9,3332.0,0.20578474]
[1768357406036,4.38888609,3332.8,3332.0,0.20578474]
[1768357406853,4.94388609,3332.8,3332.0,0.20578474]
[1768357408212,4.38888609,3332.6,3332.0,0.20578474]
[1768357408414,4.79888609,3332.5,3332.0,0.20578474]
[1768357408614,1.49000263,3332.5,3332.0,0.20578474]
[1768357409753,2.04500263,3332.5,3332.0,0.20578474]
[1768357410759,5.04575326,3332.5,3332.0,0.20578474]
[1768357411120,9.43463935,3332.5,3332.0,0.20578474]
[1768357411452,4.38888609,3332.4,3332.0,0.20578474]
[1768357411646,0.94346393,3332.3,3332.0,0.20578474]
[1768357411852,2.04500263,3332.5,3332.0,0.20578474]
[1768357412018,2.60000263,3332.5,3332.0,0.20578474]
[1768357412222,5.60076743,3332.5,3332.0,0.20578474]
[1768357412753,2.60000263,3332.5,3332.0,0.20578474]
[1768357413851,1.11,3332.5,3332.0,4.50648665]
[1768357414019,1.11,3332.5,3332.2,4.30070191]
[1768357414221,1.0056859,3332.5,3332.2,4.30070191]
[1768357414449,1.5606859,3332.5,3332.0,0.20578474]
[1768357415529,1.5606859,3332.5,3332.0,3.20698037]
[1768357415935,1.5606859,3332.5,3332.0,7.52879428]
[1768357416131,1.5606859,3332.5,3332.1,4.32181391]
[1768357417043,2.1156859,3332.5,3332.3,4.32181391]
[1768357417622,2.1156859,3332.5,3332.4,0.001]
[1768357419430,2.6706859,3332.5,3332.4,0.001]
[1768357419831,0.555,3332.8,3332.4,4.32281391]
[1768357420163,0.505,3332.8,3332.4,4.32281391]
[1768357421260,0.555,3332.9,3332.6,4.32181391]
[1768357421559,0.555,3332.9,3332.6,7.32238931]
[1768357421761,1.11,3332.9,3332.6,7.32238931]
[1768357423143,1.11,3332.9,3332.7,4.32181391]
[1768357424162,1.665,3332.9,3332.7,7.32234001]
[1768357424557,1.665,3332.9,3332.5,3.00072509]
[1768357424758,1.665,3332.9,3332.6,3.00065694]
[1768357425164,1.665,3332.9,3332.7,3.00056142]
[1768357425468,1.665,3332.9,3332.8,0.30005614]
[1768357426538,2.22,3332.9,3332.8,0.30005614]
[1768357427332,2.22,3332.9,3332.5,7.32252313]
[1768357427537,2.22,3332.9,3332.6,3.00065692]
[1768357428634,2.22,3332.9,3332.6,7.32247083]
[1768357429269,2.775,3332.9,3332.6,7.32247083]
[1768357429440,2.777,3332.9,3332.6,7.32247083]
[1768357430248,2.777,3332.9,3332.6,4.32181391]
[1768357430456,2.777,3332.9,3332.4,7.32363311]
[1768357430643,2.777,3332.9,3332.5,3.00074877]
[1768357430952,2.777,3332.9,3332.5,7.32256268]
[1768357431474,2.777,3332.9,3332.5,4.32181391]
[1768357431672,3.332,3332.9,3332.5,4.32181391]
[1768357432252,3.332,3332.9,3332.4,3.41179768]
[1768357432569,3.332,3332.9,3332.4,3.00179768]
[1768357433358,3.332,3332.9,3332.4,0.001]
[1768357433555,7.41881501,3332.9,3332.4,0.001]
[1768357434161,7.97381501,3332.9,3332.4,0.001]
[1768357434363,8.44745232,3332.9,3332.4,0.001]
[1768357434562,11.4478468,3332.9,3332.4,0.001]
[1768357434763,4.08681501,3332.8,3332.4,0.001]
[1768357436692,4.64181501,3332.8,3332.4,0.001]
[1768357436987,4.08681501,3332.7,3332.4,0.001]
[1768357437290,4.08681501,3332.6,3332.4,0.001]
[1768357437794,1.24129674,3332.7,3332.4,0.001]
[1768357438364,0.555,3332.8,3332.4,0.001]
[1768357438575,0.555,3332.8,3332.4,4.32281391]
[1768357439273,1.11,3332.8,3332.4,4.32281391]
[1768357440565,1.11,3332.8,3332.5,4.32181391]
[1768357441074,1.11,3332.8,3332.7,0.001]
[1768357441966,1.665,3332.8,3332.7,0.001]
[1768357443594,3.887,3332.9,3332.7,0.001]
[1768357444201,4.442,3332.9,3332.7,4.32281391]
[1768357446899,4.997,3332.9,3332.7,4.32281391]
[1768357448379,4.85400001,3332.9,3332.7,4.32281391]
[1768357449201,4.85400001,3332.9,3332.7,0.001]
[1768357449369,5.40900001,3332.9,3332.7,0.001]
[1768357450812,5.26600002,3332.9,3332.7,0.001]
[1768357451814,5.82100002,3332.9,3332.7,0.001]
[1768357451991,5.82100002,3332.9,3332.2,3.41101537]
[1768357452203,10.14157367,3332.9,3332.2,3.41101537]
[1768357452507,5.82100002,3332.9,3332.3,4.06333697]
[1768357452708,5.82100002,3332.9,3332.3,7.06426241]
[1768357453011,5.82100002,3332.9,3332.4,4.06333697]
[1768357453370,10.13558302,3332.9,3332.2,4.06333697]
[1768357453824,14.45615667,3332.9,3332.1,3.00110897]
[1768357454174,4.32057365,3332.8,3332.0,7.27028097]
[1768357456321,6.37600002,3332.9,3332.1,4.06333697]
[1768357457120,6.93100002,3332.9,3332.1,4.06333697]
[1768357458523,6.93100002,3332.9,3332.1,7.06442133]
[1768357458680,6.93100002,3332.9,3332.2,3.99693622]
[1768357459527,14.7118531,3332.9,3332.0,7.20391851]
[1768357459681,4.63545149,3332.8,3332.0,4.20272096]
[1768357459881,4.63545149,3332.8,3332.0,0.20578474]
[1768357460092,4.22545149,3332.6,3332.0,0.20578474]
[1768357460982,4.22545149,3332.5,3332.0,0.20578474]
[1768357462016,4.78045149,3332.5,3332.0,0.20578474]
[1768357464482,5.33545149,3332.5,3332.3,0.001]
[1768357467547,5.89045149,3332.5,3332.3,0.001]
[1768357470123,6.44545149,3332.5,3332.3,0.001]
[1768357470323,2.22,3332.5,3332.3,0.001]
[1768357472140,4.22545149,3332.4,3332.3,0.001]
[1768357472454,2.99997421,3333.4,3332.7,3.99693622]
[1768357472757,4.78045149,3333.6,3332.7,3.99693622]
[1768357472758,7.22532875,3333.5,3332.7,3.99693622]
[1768357472958,10.22520601,3333.5,3332.7,3.99693622]
[1768357473463,7.22532875,3333.5,3332.7,3.99693622]
[1768357473635,7.22532875,3333.5,3332.7,4.39662984]
[1768357474985,7.78032875,3333.5,3332.7,4.39662984]
[1768357475401,10.78020601,3333.5,3332.7,4.39662984]
[1768357475687,4.25668362,3333.4,3332.7,4.39662984]
[1768357476284,0.002,3333.2,3332.7,4.39662984]
[1768357477479,0.557,3333.2,3332.7,4.39662984]
[1768357477676,0.557,3333.2,3332.8,0.43966298]
[1768357477873,0.557,3333.5,3332.8,4.82453475]
[1768357478264,3.55685384,3333.5,3332.8,4.82453475]
[1768357478585,0.557,3333.5,3332.8,4.82453475]
[1768357480086,8.36853789,3333.5,3332.8,0.43966298]
[1768357480286,4.25668362,3333.4,3332.8,0.43966298]
[1768357482626,4.81168362,3333.4,3332.8,0.43966298]
[1768357482788,4.81168362,3333.4,3332.6,7.38550603]
[1768357483127,7.81162632,3333.4,3332.6,7.38550603]
[1768357483327,4.81168362,3333.4,3332.6,7.38550603]
[1768357484531,7.81162858,3333.4,3332.6,7.38550603]
[1768357484928,4.81168362,3333.4,3332.6,7.38550603]
[1768357485233,5.36668362,3333.4,3332.6,7.38550603]
[1768357485725,5.36668362,3333.4,3332.6,7.38551319]
[1768357486434,5.36668362,3333.4,3332.7,4.38487177]
[1768357487703,5.92168362,3333.4,3332.7,4.38487177]
[1768357488529,5.92168362,3333.4,3332.7,7.38542849]
[1768357488826,1.665,3333.4,3332.9,0.001]
[1768357489001,0.002,3333.2,3332.9,0.001]
[1768357490131,0.557,3333.2,3332.9,0.001]
[1768357492450,1.112,3333.2,3332.9,0.001]
[1768357494854,1.667,3333.2,3332.9,0.001]
[1768357495050,4.66712523,3333.2,3332.9,0.001]
[1768357495256,4.66714838,3333.2,3332.9,0.001]
[1768357495823,1.667,3333.2,3332.9,0.001]
[1768357496026,1e-08,3333.1,3333.0,4.38487177]
[1768357496555,1e-08,3333.1,3332.9,0.001]
[1768357497363,0.55500001,3333.1,3332.9,0.001]
[1768357499649,4.25668362,3333.0,3332.2,4.38487177]
[1768357499978,3.00039005,3332.9,3332.2,4.38487177]
[1768357500350,7.25702469,3333.0,3332.2,4.38487177]
[1768357500544,7.25702469,3333.0,3332.2,7.38587618]
[1768357500779,4.25668362,3333.0,3332.2,7.38587618]
[1768357500990,7.25698642,3333.0,3332.2,4.38487177]
[1768357501472,4.25668362,3332.9,3332.0,4.59065651]
[1768357501678,4.25668362,3332.8,3332.0,0.20578474]
[1768357501852,3.00075018,3332.5,3332.0,0.20578474]
[1768357502361,7.25736497,3332.6,3332.0,0.20578474]
[1768357502566,6.0013627,3332.6,3332.0,0.20578474]
[1768357503482,3.00068135,3332.6,3332.0,0.20578474]
[1768357503655,7.25736497,3332.6,3332.0,0.20578474]
[1768357504566,3.55568135,3332.6,3332.0,0.20578474]
[1768357504874,3.55568135,3332.6,3332.0,5.04972216]
[1768357505387,0.555,3332.6,3332.0,5.04972216]
[1768357505551,3.55569431,3332.6,3332.0,5.04972216]
[1768357506977,4.11069431,3332.6,3332.0,5.04972216]
[1768357507765,1.11,3332.6,3332.0,5.04972216]
[1768357508114,0.965,3332.8,3332.4,4.05407478]
[1768357509452,1.52,3332.8,3332.4,4.05407478]
[1768357509785,4.16145785,3332.7,3332.1,0.40743632]
[1768357510092,4.16145785,3332.7,3332.0,0.20578474]
[1768357510287,7.16211799,3332.6,3332.0,0.20578474]
[1768357511924,4.16145785,3332.5,3332.0,0.20578474]
[1768357512299,4.16145785,3332.4,3332.3,0.001]
[1768357512928,4.16145785,3332.4,3332.0,0.20578474]
[1768357513228,4.16145785,3332.3,3331.5,4.05407478]
[1768357514018,4.16145785,3332.3,3331.5,7.05569836]
[1768357514592,4.71645785,3332.3,3331.5,3.00162358]
[1768357514792,4.71645785,3332.3,3331.5,7.05569836]
[1768357515120,0.555,3332.3,3331.6,4.05407478]
[1768357515315,0.555,3332.3,3331.7,4.05407478]
[1768357517124,4.11056948,3332.8,3332.2,4.05407478]
[1768357517125,1.11,3332.8,3332.2,4.05407478]
[1768357518319,4.11049114,3332.8,3332.2,4.05407478]
[1768357518522,4.11049114,3332.8,3332.2,0.41]
[1768357518909,8.06964904,3332.8,3332.2,0.41]
[1768357519110,1.11,3333.1,3332.4,4.12977132]
[1768357519530,1.665,3333.1,3332.4,4.12977132]
[1768357521140,1.665,3333.1,3332.5,4.12977132]
[1768357522039,2.22,3333.1,3332.5,4.12977132]
[1768357522648,3.9591579,3333.0,3331.4,14.437628]
[1768357522808,3.9591579,3332.8,3331.7,4.12977132]
[1768357523012,3.410642,3332.7,3331.8,4.12977132]
[1768357523813,0.41,3332.7,3331.9,4.15978422]
[1768357524115,0.41,3332.7,3332.3,4.13077132]
[1768357524534,0.965,3332.7,3332.3,4.13077132]
[1768357524713,0.915,3332.7,3332.5,4.12977132]
[1768357524916,0.915,3332.7,3332.5,4.11235974]
[1768357524917,0.48259646,3332.7,3332.5,4.11235974]
[1768357526944,1.03759646,3332.7,3332.5,4.11235974]
[1768357529452,1.59259646,3332.7,3332.5,4.11235974]
[1768357531901,2.14759646,3332.7,3332.5,4.11235974]
[1768357534505,2.70259646,3332.7,3332.5,4.11235974]
[1768357535195,0.41,3332.9,3332.7,4.3384971]
[1768357536294,0.41,3332.9,3332.5,4.79192194]
[1768357537000,0.41,3332.9,3332.5,7.79265128]
[1768357537194,0.002,3332.8,3332.5,7.79265128]
[1768357537373,0.002,3332.8,3332.6,0.41307713]
[1768357539991,0.557,3332.8,3332.6,0.41307713]
[1768357541412,0.557,3332.8,3332.4,4.3384971]
[1768357542492,1.112,3332.8,3332.4,4.3384971]
[1768357545481,1.667,3332.8,3332.4,4.3384971]
[1768357547903,2.222,3332.8,3332.4,4.3384971]
[1768357548102,2.222,3332.8,3332.5,4.3384971]
[1768357548638,0.41,3332.7,3332.5,4.3384971]
[1768357549472,2.222,3332.8,3332.5,4.3384971]
[1768357549629,0.41,3332.6,3332.5,4.3384971]
[1768357550306,0.965,3332.6,3332.5,4.3384971]
[1768357553553,2.222,3332.8,3332.6,4.3384971]
[1768357553756,0.41,3332.7,3332.6,4.3384971]
[1768357553926,0.41,3332.7,3332.6,4.35923147]
[1768357554256,0.41,3332.7,3332.6,0.02073437]
[1768357555838,0.965,3332.7,3332.6,0.02073437]
[1768357558385,1.52,3332.7,3332.6,0.02073437]
[1768357558753,1.52,3332.7,3332.4,4.3384971]
[1768357561184,2.075,3332.7,3332.3,0.001]
[1768357561784,2.075,3332.7,3332.3,4.3394971]
[1768357562004,2.075,3332.7,3332.3,7.34040328]
[1768357562687,0.555,3332.9,3332.6,4.3384971]
[1768357562880,0.41,3332.8,3332.6,4.3384971]
[1768357563555,0.965,3332.8,3332.6,4.3384971]
[1768357563960,0.965,3332.8,3332.4,4.3384971]
[1768357566402,1.52,3332.8,3332.4,4.3384971]
[1768357566894,1.52,3332.8,3332.3,0.001]
[1768357569011,2.075,3332.8,3332.3,0.001]
[1768357571376,2.63,3332.8,3332.3,0.001]
[1768357572111,4.41171272,3332.7,3332.3,0.001]
[1768357572486,4.41171272,3332.7,3332.6,0.001]
[1768357572894,3.68970322,3332.8,3332.6,0.001]
[1768357573788,4.24470322,3332.8,3332.6,0.001]
[1768357575291,3.185,3332.8,3332.6,0.001]
[1768357576282,3.74,3332.8,3332.6,0.001]
[1768357578718,4.295,3332.8,3332.6,0.001]
[1768357581216,4.85,3332.8,3332.6,0.001]
[1768357582194,4.02693263,3332.7,3332.6,0.001]
[1768357582384,5.57022234,3332.7,3332.6,0.001]
[1768357582583,1.54328971,3332.7,3332.6,0.001]
[1768357583311,4.54385981,3332.7,3332.6,0.001]
[1768357583520,2.09828971,3332.7,3332.6,0.001]
[1768357583817,4.02693263,3332.6,3331.5,4.23222666]
[1768357585123,7.02761612,3332.6,3331.6,3.00156081]
[1768357585319,7.02761612,3332.6,3331.7,4.23222666]
[1768357586213,7.58261612,3332.6,3331.7,4.23222666]
[1768357586813,4.02693263,3332.5,3331.7,4.23222666]
[1768357587059,4.43693263,3332.4,3331.7,4.23222666]
[1768357587218,4.43693263,3332.4,3331.6,3.00156081]
[1768357587418,4.43693263,3332.4,3331.6,4.23222666]
[1768357588513,4.99193263,3332.4,3331.6,4.23222666]
[1768357588714,4.02693263,3332.3,3331.3,4.23222666]
[1768357589424,0.555,3332.4,3331.5,4.23222666]
[1768357589625,0.555,3332.6,3332.3,4.23222666]
[1768357589794,0.41,3332.5,3332.3,4.23222666]
[1768357590895,0.555,3332.5,3332.3,4.23222666]
[1768357591335,0.41,3332.4,3332.3,4.23222666]
[1768357592706,0.47498736,3332.4,3331.6,4.23222666]
[1768357592903,4.02693263,3332.3,3331.5,3.00159406]
[1768357593430,4.02693263,3332.3,3331.5,7.23382072]
[1768357594632,4.02693263,3332.3,3331.6,3.00155716]
[1768357594809,0.965,3332.4,3331.7,4.23222666]
[1768357595807,1.52,3332.4,3331.7,4.23222666]
[1768357596615,1.52,3332.4,3331.7,7.23368911]
[1768357598235,1.52,3332.4,3331.7,4.23222666]
[1768357598541,2.075,3332.4,3331.7,4.23222666]
[1768357599342,5.07585608,3332.4,3331.7,4.23222666]
[1768357599522,2.075,3332.4,3331.7,4.23222666]
[1768357599716,9.22015665,3332.4,3331.7,4.23222666]
[1768357600031,4.1442815,3332.3,3331.5,7.21638069]
[1768357600828,4.6992815,3332.3,3331.5,7.21638069]
[1768357601418,4.6992815,3332.3,3331.5,7.2164234]
[1768357601820,7.70022066,3332.3,3331.5,7.2164234]
[1768357602020,4.6992815,3332.3,3331.5,7.2164234]
[1768357603117,4.6992815,3332.3,3331.5,3.00163991]
[1768357603118,4.1442815,3332.2,3331.5,3.00163991]
[1768357603829,4.1442815,3332.2,3331.4,7.21653161]
[1768357604021,4.1442815,3332.2,3331.4,3.0017203]
[1768357604542,4.1442815,3332.2,3331.4,7.21653161]
[1768357605315,4.1442815,3332.2,3331.4,10.21827261]
[1768357605517,4.1442815,3332.2,3331.5,3.00158358]
[1768357605717,4.6992815,3332.2,3331.5,3.00158358]
[1768357606330,0.41,3332.1,3331.6,4.21481131]
[1768357606821,0.41,3332.1,3331.9,0.001]
[1768357608450,0.965,3332.1,3331.9,0.001]
[1768357610818,1.52,3332.1,3331.9,0.001]
[1768357611152,1.11,3332.1,3331.9,0.001]
[1768357611335,0.41,3332.0,3331.9,0.001]
[1768357613567,0.965,3332.0,3331.9,0.001]
[1768357615861,1.52,3332.0,3331.9,0.001]
[1768357617355,1.11,3332.1,3331.9,4.21581131]
[1768357617662,0.41,3332.0,3331.9,4.21581131]
[1768357618453,0.965,3332.0,3331.9,4.21581131]
[1768357619662,0.965,3332.0,3331.9,0.001]
[1768357620902,1.52,3332.0,3331.9,0.001]
[1768357622045,1.11,3332.1,3331.9,0.001]
[1768357622247,0.555,3332.5,3331.9,0.001]
[1768357622248,0.555,3332.7,3332.5,4.21481131]
[1768357622768,0.965,3332.6,3332.5,4.21481131]
[1768357623078,0.965,3332.6,3332.3,4.21481131]
[1768357623275,1.11,3332.6,3332.3,4.21481131]
[1768357623480,0.555,3332.7,3332.2,0.0207353]
[1768357623481,1.20178472,3332.7,3332.2,0.0207353]
[1768357623659,4.5542815,3332.5,3332.2,0.0207353]
[1768357624182,4.5542815,3332.5,3331.9,0.001]
[1768357625882,0.965,3332.5,3331.9,4.11987898]
[1768357626070,0.41,3332.4,3331.9,4.11987898]
[1768357628369,0.41,3332.4,3332.0,4.11887898]
[1768357628571,0.965,3332.4,3332.0,4.11887898]
[1768357629583,0.965,3332.4,3331.9,0.001]
[1768357629787,0.965,3332.4,3332.2,0.001]
[1768357631283,1.52,3332.4,3332.2,0.001]
[1768357632782,1.52,3332.4,3332.2,4.11987898]
[1768357633786,1.11,3332.4,3332.2,4.11987898]
[1768357633990,0.41,3332.3,3332.2,4.11987898]
[1768357634378,0.41,3332.3,3332.2,0.001]
[1768357634574,0.41,3332.3,3332.2,4.11987898]
[1768357634992,1.665,3332.4,3332.2,4.11987898]
[1768357635159,1.665,3332.4,3332.3,4.53086688]
[1768357635555,2.075,3332.4,3332.3,4.53086688]
[1768357636479,2.63,3332.4,3332.3,4.53086688]
[1768357638869,3.185,3332.4,3332.3,4.53086688]
[1768357639188,3.135,3332.4,3332.3,4.59710197]
[1768357639991,3.105037,3332.4,3332.3,4.59710197]
[1768357641068,3.063656,3332.4,3332.3,4.59710197]
[1768357641257,3.618656,3332.4,3332.3,4.59710197]
[1768357641665,3.618656,3332.4,3332.2,0.001]
[1768357643360,3.618656,3332.4,3332.2,4.18611407]
[1768357643992,4.173656,3332.4,3332.2,4.18611407]
[1768357644193,0.41,3332.3,3332.2,4.18611407]
[1768357645599,0.355,3332.7,3332.3,4.18511407]
[1768357645796,0.355,3332.7,3332.2,0.001]
[1768357645797,0.41,3332.3,3332.2,0.001]
[1768357645975,0.41,3332.3,3332.2,0.41961141]
[1768357646182,0.38926533,3332.3,3332.2,0.41961141]
[1768357646379,4.9575282,3332.3,3330.8,4.18511407]
[1768357646576,4.9575282,3332.3,3331.1,4.18511407]